Cogmind - Beta 13 X3 @@@ ROGUE MODE // 2024.02.29 @ 01:28:02 Player: paimionrasti Result: Self-destructed Performance ------------- Evolutions (3) 1500 Regions Visited (5) 1000 Robots Destroyed (42) 210 Value Destroyed (1155) 1155 Prototype IDs (6) 120 Alien Tech Used (0) 0 Bonus (0) 0 TOTAL SCORE: 3985 Bonus ------- None Cogmind --------- Core Integrity 700/700 Matter 256/300 Energy 269/290 System Corruption 3% Temperature Cool (2) Movement Hovering (38) Location -7/Factory Parts ------- > --- POWER (1) -------- Improved Deuterium Engine > --- PROPULSION (5) --- Aerolev Unit Improved Airjet Improved Airjet Improved Airjet > --- UTILITY (5) ------ Medium Storage Unit Structural Scanner Advanced Visual Processing Unit Improved Targeting Computer Improved Targeting Computer > --- WEAPON (2) ------- Gatling Laser Gauss Rifle > --- INVENTORY (10) --- Improved Heat Sink High-capacity Storage Unit Seismic Detector Power Shielding Heavy Assault Rifle Heavy Assault Rifle Improved Light Cannon Slug Cannon Grenade Launcher Peak State ------------ > --- POWER ------------ Improved Deuterium Engine > --- PROPULSION ------- Aerolev Unit Improved Airjet Improved Airjet Improved Airjet > --- UTILITY ---------- Medium Storage Unit Advanced Visual Processing Unit Improved Targeting Computer Improved Targeting Computer System Restoration Module > --- WEAPON ----------- Gatling Laser Gauss Rifle > --- INVENTORY -------- Advanced Treads Improved Heat Sink High-capacity Storage Unit Seismic Detector Power Shielding Heavy Assault Rifle Heavy Assault Rifle Improved Light Cannon Slug Cannon Grenade Launcher [Rating: 45] Favorites ----------- Power Light Ion Engine Engine Light Ion Engine Propulsion Improved Treads Treads Improved Treads Leg Aluminum Leg Hover Unit Improved Airjet Utility High-capacity Storage Unit Device Seismic Detector Storage High-capacity Storage Unit Processor Improved Targeting Computer Protection Light Armor Plating Weapon Small Laser Energy Gun Small Laser Ballistic Gun Improved Assault Rifle Launcher Grenade Launcher Special Weapon Mining Laser Build | -11 -10 -10 -9 -8 -7 ------- Run | Yrd Mat Min Mat Mat Fac Slots Evolved 6 | . . . 2 2 2 Power . | . . . . . . Propulsion 3 | . . . 1 1 1 Utility 3 | . . . 1 1 1 Weapon . | . . . . . . Parts Attached 61 | 6 7 3 26 13 6 Power 6 | 1 . 1 3 . 1 Engine 6 | 1 . 1 3 . 1 Core . | . . . . . . Reactor . | . . . . . . Propulsion 22 | 2 2 . 11 7 . Treads 16 | . 2 . 11 3 . Leg 2 | 2 . . . . . Wheel . | . . . . . . Hover 4 | . . . . 4 . Flight . | . . . . . . Utility 17 | 1 3 . 6 3 4 Device 3 | . 1 . . . 2 Storage 3 | 1 1 . . 1 . Processor 3 | . . . 1 . 2 Hackware . | . . . . . . Protection 8 | . 1 . 5 2 . Artifact . | . . . . . . Weapon 16 | 2 2 2 6 3 1 Energy Gun 7 | 2 1 . 2 1 1 Energy Cannon . | . . . . . . Ballistic Gun 5 | . . . 4 1 . Ballistic Cannon . | . . . . . . Launcher 3 | . 1 1 . 1 . Special Weapon 1 | . . 1 . . . Impact Weapon . | . . . . . . Slashing Weapon . | . . . . . . Piercing Weapon . | . . . . . . Special Melee Weapon . | . . . . . . Unidentified Prototypes 4 | . . . 2 2 . Parts Lost 8 | . . . 6 1 1 Power 1 | . . . 1 . . Propulsion 2 | . . . 2 . . Utility 3 | . . . 1 1 1 Weapon 2 | . . . 2 . . Highest Loss Streak 4 | . . . 4 1 1 To Critical Strikes . | . . . . . . Average Slot Usage (%) 98 | . 98 100 98 95 81 Engine 12 | . 14 14 10 9 7 Treads 25 | . 7 28 32 29 . Leg 3 | . 20 . . . . Hover 1 | . . . . 5 30 Device 7 | . 6 14 . . 4 Storage 12 | . 14 14 11 9 7 Processor 4 | . . . 10 9 15 Protection 5 | . 5 . 9 14 . Energy Gun 15 | . 25 25 . 8 7 Ballistic Gun 6 | . . . 19 9 7 Launcher 1 | . 2 1 . . . Naked Turns . | . . . . . . Heaviest Build 69 | 11 48 48 58 69 29 Greatest Support 85 | 20 46 46 69 85 35 Greatest Overweight (x) 6 | . 2 1 1 6 . Average Overweight (x) . | . 1 1 . . . Largest Inventory Capacity 20 | 8 20 20 20 20 10 Average Capacity 19 | 6 18 20 20 18 10 Most Carried 20 | 4 11 19 20 20 10 Average Carried 15 | 1 8 16 19 17 9 Final Capacity 20 | 8 20 20 20 10 10 Final Carried 20 | 4 11 19 20 10 9 Class Distribution -------------------- 88% | Mutant 11% | Scavenger-Mutant Dominant Class ---------------- Mutant | -10/Materials Mutant | -10/Mines Mutant | -9/Materials Scavenger-Mutant | -8/Materials Mutant | -7/Factory Resources | -11 -10 -10 -9 -8 -7 ----------- Run | Yrd Mat Min Mat Mat Fac Matter Collected 1236 | 245 95 40 589 240 27 Remotely . | . . . . . . Salvage Created 1579 | . 100 141 907 404 27 Parts 89 | . 2 15 57 13 2 Haulers Intercepted 3 | . 1 . 2 . . Recyclers Shooed 2 | . 1 . . 1 . Parts Field Recycled . | . . . . . . Retrieved Matter . | . . . . . . Parts Self-Destructed . | . . . . . . Prevented . | . . . . . . Kills | -11 -10 -10 -9 -8 -7 ------- Run | Yrd Mat Min Mat Mat Fac Combat Hostiles Destroyed 31 | . 2 6 15 8 . Guns 25 | . . 6 15 4 . AOE 6 | . 2 . . 4 . Classes Destroyed 10 | . 2 3 2 2 1 Worker 1 | . . 1 . . . Builder 1 | . . . . . 1 Tunneler 1 | . . 1 . . . Hauler 3 | . 1 . 2 . . Recycler 2 | . . . . 2 . Watcher 3 | . . . 3 . . Swarmer 8 | . . 6 . 2 . Grunt 11 | . 2 . 7 2 . Sentry 10 | . . . 8 2 . Hunter 2 | . . . . 2 . Best Kill Streak 4 | . 2 3 4 4 1 Combat Bots Only 4 | . 2 3 4 4 . Max Kills in Single Turn 2 | . 1 2 1 2 1 Gunslinging . | . . . . . . Exploded 2 | . 1 . . 2 . Melee . | . . . . . . Uniques/NPCs Destroyed . | . . . . . . Combat | -11 -10 -10 -9 -8 -7 -------- Run | Yrd Mat Min Mat Mat Fac Hostile Shots Fired 243 | . 11 22 129 63 18 Missed 73 | . 4 5 32 17 15 Damage Taken 2195 | . 73 139 1304 622 57 Core 302 | . 12 49 169 72 . Absorbed by Shields . | . . . . . . Redirected to Shielding 4 | . . . 4 . . Core Remaining (%) 79 | 100 . 75 57 86 . Volleys Fired 127 | . 16 13 66 32 . Largest 2 | . 2 2 2 2 . Hottest 100 | . 80 100 79 84 . Shots Fired 239 | . 29 22 129 59 . Gun 225 | . 24 18 129 54 . Cannon . | . . . . . . Launcher 10 | . 5 . . 5 . Special 4 | . . 4 . . . Kinetic 148 | . . . 121 27 . Thermal 54 | . 13 13 1 27 . Explosive 10 | . 5 . . 5 . Electromagnetic 27 | . 11 9 7 . . Robot Hit Streak 28 | . 5 5 17 28 . Robot Miss Streak 3 | . 2 2 2 3 . Penetration Max . | . . . . . . Secondary Targets 1 | . . . 1 . . Max Gunslinging Chain 1 | . . . 1 . . Shots Hit Robots 166 | . 14 9 102 41 . Core Hits 71 | . 5 8 37 20 1 Critical Kills . | . . . . . . Critical Parts Destroyed 1 | . . . 1 . . Critical Strikes 3 | . . . 2 1 . Burn 1 | . . . . 1 . Destroy 2 | . . . 2 . . Melee Attacks . | . . . . . . Impact . | . . . . . . Slashing . | . . . . . . Piercing . | . . . . . . Sneak Attacks . | . . . . . . Combat Hostiles . | . . . . . . Follow-up Attacks . | . . . . . . Damage Inflicted 2799 | . 321 122 1424 881 51 Guns 2216 | . 187 122 1424 483 . Cannons . | . . . . . . Explosions 532 | . 134 . . 398 . Melee . | . . . . . . Ramming 51 | . . . . . 51 Kinetic 1558 | . . . 1347 211 . Thermal 416 | . 77 53 14 272 . Explosive 532 | . 134 . . 398 . Electromagnetic 242 | . 110 69 63 . . Impact . | . . . . . . Slashing . | . . . . . . Piercing . | . . . . . . Highest Corruption 3 | . . . . . 3 Average Corruption 3 | . . . . . 3 Corruption Purged . | . . . . . . Corruption Blocked . | . . . . . . Effects 1 | . . . . . 1 Energy Discharges 1 | . . . . . 1 Overload Shots . | . . . . . . Overflow Damage 15 | . . . . . 15 Projectiles . | . . . . . . Explosions . | . . . . . . Melee 15 | . . . . . 15 Knockbacks . | . . . . . . Impact . | . . . . . . Kinetic . | . . . . . . Secondary . | . . . . . . Self-Inflicted Damage 25 | . . . . . 25 Shots . | . . . . . . Rammed 2 | . . . . . 2 Targets Rammed 2 | . . . . . 2 Kicked . | . . . . . . Crushed . | . . . . . . Highest Temperature 126 | . 126 90 97 108 . Average Temperature 35 | . 57 29 26 38 . Received Heat Transfer 816 | . 30 . 609 162 15 Siege Activations . | . . . . . . Robots Corrupted . | . . . . . . Combat Hostiles . | . . . . . . Parts Fried 5 | . 2 . . . 3 Impact Corruptions 1 | . . . . . 1 Robots Melted . | . . . . . . Combat Hostiles . | . . . . . . Parts Melted 2 | . . . . 2 . Heat Transferred 1114 | . 175 125 37 777 . Parts Sabotaged . | . . . . . . Parts Stolen . | . . . . . . Parts Stripped . | . . . . . . Power Chain Reactions . | . . . . . . Alert | -11 -10 -10 -9 -8 -7 ------- Run | Yrd Mat Min Mat Mat Fac Peak Influence 380 | . 84 150 204 380 120 Initial 95 | . . 32 . 85 95 Average 74 | . 9 25 106 263 110 Maximum Alert Level 1 | . . . 1 1 . Low Security (%) 89 | 100 100 100 95 18 100 Level 1 10 | . . . 4 81 . Level 2 . | . . . . . . Level 3 . | . . . . . . Level 4 . | . . . . . . Level 5 . | . . . . . . High Security . | . . . . . . Max Security . | . . . . . . Squads Dispatched 3 | . 1 . 2 . . Investigation 1 | . . . 1 . . Extermination . | . . . . . . Reinforcement 2 | . 1 . 1 . . Assault . | . . . . . . Garrison . | . . . . . . Intercept . | . . . . . . Searches Triggered . | . . . . . . Construction Impeded . | . . . . . . Haulers Reinforced . | . . . . . . Active Scanning Responses . | . . . . . . Cargo Convoy Interrupts . | . . . . . . Stealth | -11 -10 -10 -9 -8 -7 --------- Run | Yrd Mat Min Mat Mat Fac Distress Signals 3 | . 1 1 1 . . Communications Jammed . | . . . . . . Distress Signals . | . . . . . . Times Spotted 52 | . 7 6 20 15 4 Peak Tracking Total 7 | . 5 3 4 7 4 Tactical Retreats 1 | . . . . 1 . Traps | -11 -10 -10 -9 -8 -7 ------- Run | Yrd Mat Min Mat Mat Fac Traps Triggered 1 | . . . 1 . . Indirectly . | . . . . . . Trap Hack Attempts . | . . . . . . Triggered . | . . . . . . Disarmed . | . . . . . . Reprogrammed . | . . . . . . Reused . | . . . . . . Traps Extracted . | . . . . . . Installed . | . . . . . . Triggered . | . . . . . . Machines | -11 -10 -10 -9 -8 -7 ---------- Run | Yrd Mat Min Mat Mat Fac Machines Disabled 1 | . . . 1 . . Max in Single Turn 1 | . . . 1 . . Machines Repaired . | . . . . . . Machines Dismantled . | . . . . . . Machines Sabotaged . | . . . . . . Overloaded Fab Kills . | . . . . . . Hacking | -11 -10 -10 -9 -8 -7 --------- Run | Yrd Mat Min Mat Mat Fac Machines Accessed 6 | . 1 . 3 2 . Terminals 6 | . 1 . 3 2 . Fabricators . | . . . . . . Repair Stations . | . . . . . . Recycling Units . | . . . . . . Scanalyzers . | . . . . . . Garrison Access . | . . . . . . Total Hacks 21 | . 5 . 8 8 . Successful 8 | . 2 . . 6 . Failed 13 | . 3 . 8 2 . Catastrophic 2 | . . . 1 1 . Database Lockouts . | . . . . . . Manual 8 | . 2 . 3 3 . Terminals 21 | . 5 . 8 8 . Fabricators . | . . . . . . Repair Stations . | . . . . . . Recycling Units . | . . . . . . Scanalyzers . | . . . . . . Garrison Access . | . . . . . . Terminal Hacks 6 | . 1 . . 5 . Record 2 | . . . . 2 . Prototype ID Bank 1 | . 1 . . . . Locate Traps 1 | . . . . 1 . Zone Layout 2 | . . . . 2 . Fabricator Hacks . | . . . . . . Repair Station Hacks . | . . . . . . Recycling Unit Hacks . | . . . . . . Scanalyzer . | . . . . . . Garrison Access Hacks . | . . . . . . Unauthorized Hacks 2 | . 1 . . 1 . Terminals 2 | . 1 . . 1 . Track 1 | . . . . 1 . Botnet 1 | . 1 . . . . Fabricators . | . . . . . . Repair Stations . | . . . . . . Recycling Units . | . . . . . . Scanalyzers . | . . . . . . Garrison Access . | . . . . . . Data Cores Recovered . | . . . . . . Used . | . . . . . . Hacking Detections 6 | . 1 . 3 2 . Full Trace Events 2 | . 1 . 1 . . Feedback Events . | . . . . . . Feedback Blocked . | . . . . . . Robot Schematics Acquired . | . . . . . . Robots Built . | . . . . . . Authchips . | . . . . . . Time . | . . . . . . Total Robot Build Rating . | . . . . . . Part Schematics Acquired . | . . . . . . Parts Built . | . . . . . . Authchips . | . . . . . . Time . | . . . . . . Total Part Build Rating . | . . . . . . Parts Repaired . | . . . . . . Time . | . . . . . . Parts Recycled . | . . . . . . Recycled Matter . | . . . . . . Retrieved Matter . | . . . . . . Retrieved Components . | . . . . . . Parts Scanalyzed . | . . . . . . Part Schematics Acquired . | . . . . . . Parts Damaged . | . . . . . . Bothacking | -11 -10 -10 -9 -8 -7 ------------ Run | Yrd Mat Min Mat Mat Fac Used RIF Installer . | . . . . . . Robots Hacked . | . . . . . . Non-combat . | . . . . . . Combat . | . . . . . . Robot Hacks Applied . | . . . . . . Relay Couplers Released . | . . . . . . Fabnet Peak Effective % . | . . . . . . Robots Rewired . | . . . . . . Allies Hacked . | . . . . . . Hacks Repelled . | . . . . . . Allies | -11 -10 -10 -9 -8 -7 -------- Run | Yrd Mat Min Mat Mat Fac Total Allies 1 | . . 1 . . . Largest Group 1 | . . 1 . . . Highest-Rated Group 31 | . . 31 . . . Highest-Rated Ally 31 | . . 31 . . . Total Orders . | . . . . . . Ally Attacks . | . . . . . . Total Damage . | . . . . . . Kills . | . . . . . . Allies Corrupted . | . . . . . . Allies Melted . | . . . . . . Intel | -11 -10 -10 -9 -8 -7 ------- Run | Yrd Mat Min Mat Mat Fac Robot Analysis Total . | . . . . . . Derelict Logs Recovered 2 | . . 2 . . . Drone Launches . | . . . . . . Drone Recoveries . | . . . . . . Exploration | -11 -10 -10 -9 -8 -7 ------------- Run | Yrd Mat Min Mat Mat Fac Turns Passed 3829 | 70 616 1502 1108 437 96 Spaces Moved 1859 | 52 242 594 505 257 209 Core 6 | 6 . . . . . Treads 1299 | . 50 594 505 150 . Legs 238 | 46 192 . . . . Wheels . | . . . . . . Hover 316 | . . . . 107 209 Flight . | . . . . . . Fastest Speed 38 | 50 120 240 160 38 38 Average Speed 173 | 111 227 240 160 114 38 Slowest Speed 470 | 120 320 240 240 470 38 Overloaded Moves . | . . . . . . Propulsion Burnouts . | . . . . . . Robots Hopped . | . . . . . . Cave-ins Triggered . | . . . . . . Exploration Rate (%) 31 | 3 30 84 41 21 9 Regions Visited 5 Branch Regions 1 Pre-discovered Areas . | . . . . . . Known Exits Taken 1 | . . . 1 . . Unknown Exits Taken 4 | 1 1 1 . 1 . Scrap Searched 1 | . . 1 . . . Spaces Dug . | . . . . . . Terrain Destroyed 53 | . 31 . . 22 . Melee . | . . . . . . Projectile . | . . . . . . AOE 53 | . 31 . . 22 . Terrain Rammed . | . . . . . . Walls Destroyed . | . . . . . . Machines Disabled . | . . . . . . Actions | -11 -10 -10 -9 -8 -7 --------- Run | Yrd Mat Min Mat Mat Fac Total 2234 | 61 278 640 689 341 225 Wait 113 | . . 24 56 28 5 Move 1854 | 51 241 593 504 256 209 Hop . | . . . . . . Pick Up 34 | 4 8 7 13 2 . Fast Attach 27 | 6 4 . 9 4 4 Attach 7 | . . . 5 2 . Detach 4 | . 1 . 2 1 . Swap 27 | . 3 3 12 7 2 Drop 39 | . 5 . 22 9 3 Fire 127 | . 16 13 66 32 . Melee . | . . . . . . Ram 2 | . . . . . 2 Kick . | . . . . . . Crush . | . . . . . . Escape Stasis . | . . . . . . Rewire . | . . . . . . Trap . | . . . . . . Miscellaneous . | . . . . . . Route ------- -11/Scrapyard -10/Materials (discovered 2 exits: *Mat / [*Min]) -10/Mines (discovered 3 exits: *Mat x2 / [*Exi]) -9/Materials (discovered 2 exits: *Mat x2) -8/Materials -7/Factory History --------- Turn | Location | Event 19 | -11/Scrapyard | Discovered new exit (range 15) 71 | -11/Scrapyard | Entered Materials 307 | -10/Materials | Build established: Mutant 494 | -10/Materials | Discovered new exit (range 5) 625 | -10/Materials | Discovered new exit (range 15) 687 | -10/Materials | Entered Mines 709 | -10/Mines | Deemed a non-threat by the Exiles lab entrance 709 | -10/Mines | Discovered new exit (range 5) 764 | -10/Mines | Learned Materials terminal intel 767 | -10/Mines | Discovered new exit (range 5) 770 | -10/Mines | Received a Mining Laser from a helpful Derelict 875 | -10/Mines | Discovered new exit (range 8) 972 | -10/Mines | A weapon hastily lodged in a ceiling crevice suddenly fell to the ground 1131 | -10/Mines | Learned location of 1 exit from Materials 2013 | -10/Mines | Excavation squad dispatched 2013 | -10/Mines | A large section of the Mines collapsed 2189 | -10/Mines | Entered Materials 2189 | -9/Materials | Evolved 2 slots: Propulsion x1, Utility x1 2190 | -9/Materials | Identified exit to Materials 2191 | -9/Materials | Loaded intel: 12 terminal locations 3088 | -9/Materials | Lost 4 parts (1p2n1u) 3182 | -9/Materials | Discovered exit to Materials (range 13) 3297 | -9/Materials | Entered another Materials area 3297 | -8/Materials | Evolved 2 slots: Propulsion x1, Utility x1 3489 | -8/Materials | Discovered new exit (range 20) 3524 | -8/Materials | Build established: Scavenger-Mutant 3734 | -8/Materials | Entered Factory 3734 | -7/Factory | Evolved 2 slots: Propulsion x1, Utility x1 3830 | -7/Factory | Self-destructed Last Messages --------------- 03805_ System corrupted by crushing effect (+3). 03806_ Slammed into U-05 Engineer. 03806_ Wheel fried. 03806_ Terrain Scanner fried. 03806_ Welding Torch fried. 03806_ U-05 Engineer destroyed. 03807_ Acquired 27 matter. 03807_ K-01 Serf collects debris. 03808_ Acquired Structural Scanner. 03809_ Dropped Adv. Treads. 03813_ K-01 Serf latches onto P-60 Hacker. 03813_ K-01 Serf pushes P-60 Hacker. 03815_ System corrupted: Energy discharge (-104). 03816_ K-01 Serf collects debris. 03816_ R-06 Scavenger collects Adv. Treads. [A new version of Cogmind is available, see F1 News page.] [A new version of Cogmind is available, see F1 News page.] Map ----- +----------------------------------------------------+ | ??????????????????????????## #####+### "" "" | | ??????????????????????????## ## *# "" "" | | ??????????????????????????## ## # """ "" | | ??????????????????????????## ##* # """ "" | | ??????????????????????????## ## *+ """ "" | | ?????????????????????????? # ## " " # | | ?????????????????????????? # ## " " # | | ?????????????????????????? # ## " " ####+### | | ?????????????????????????? # ## " " ## ? | | ?????????????????????????? # ## " " ## # | | ?????????????????????????? + ## " " ## # | | ?????????????????????????? # + " " ## # | | ?????????????????????????? # ## " " ## ! #? | | ?????????????????????????? # ##[ " " ##"" #? | | ?????????????????????????? # ## ##"" #? | | ?????????????????????????? # ##########""" #? | | ?????????????????????????? # ##########""" #? | | ??????????????????????????## T##??????#""" #? | | ??????????????????????????## #######??? +? | | ??????????????????????????## ########??? ! #? | | ???????????????????????##### ##########? | | ???????????????????????#####+#+#######+#######???? | | ???????????????????????## # !##???? | | ???????????????????????## """" # ##???? | | ???????????????????????## """" # " " ##???? | | ???????????????????????##@] """" # "Y" ##???? | | ???????????????????????##]] """" # """ ##???? | | ???????????????????????## """" # ##???? | | ???????????????????????## """" #########???? | | ???????????????????????## #########???? | | ???????????????????????## ##??????????? | | ???????????????????????## ##??????????? | | ???????????????????????## ##??????????? | | ???????????????????????## ! ##??????????? | | ???????????????????????################??????????? | | ???????????????????????################??????????? | | ?????????????????????????????????????????????????? | | ?????????????????????????????????????????????????? | | ?????????????????????????????????????????????????? | | ?????????????????????????????????????????????????? | | ?????????????????????????????????????????????????? | | ?????????????????????????????????????????????????? | | ?????????????????????????????????????????????????? | | ?????????????????????????????????????????????????? | | ?????????????????????????????????????????????????? | | ?????????????????????????????????????????????????? | | ?????????????????????????????????????????????????? | | ?????????????????????????????????????????????????? | | ?????????????????????????????????????????????????? | | ?????????????????????????????????????????????????? | +----------------------------------------------------+ Best States ------------- Heat Dissipation 34 Energy Generation 16 Energy Capacity 290 Matter Stores 300 Matter Capacity 300 Sight Range 20 Terrain Scan Density 10 Armor Coverage 450 Power Shielding 33 Evasion (%) 57 Targeting Accuracy 12 Recoil Reduction 4 Item Schematics ----------------- None Robot Schematics ------------------ None Fabricated ------------ Nothing Alien Tech Used ----------------- None Achievements -------------- None Challenges ------------ None Game ------ Seed SkeletonEfficiencyMount Manual? 0 Play Time 00:49:54 Cumulative 1.6 hours Start 2024.02.15 @ 22:35:54 End 2024.02.29 @ 01:28:02 Sessions 17 Manual Loads 0 Difficulty Rogue Special Mode None Game No. 3 Rogue 3 Adventurer 0 Explorer 0 Win Type - Total 0 Types 0/0/0/0/0/0/0/0/0 Lore% 0 Gallery% 4 Achievement% 51 Wizard Run 0 Options --------- Layout 1 ASCII 1 Keyboard 1 Movement Vi Keybinds 0 Fullscreen 2 Font 32/SmallcapsGlow Map View 50x35 Zoom Use 2% Tactical HUD 1 Map Filters NONE Filters NONE Steam 1 RUN: 323e8cb8-1c0d-4137-b7f6-f600c4cc0a54